Cogmind - Beta 11 @@@ ROGUE MODE // 2022.04.10 @ 23:07:51 Player: Momo Result: Destroyed by H-66 Slayer with Gauss Rifle Performance ------------- Evolutions (5) 2500 Regions Visited (19) 3800 Robots Destroyed (78) 390 Value Destroyed (3322) 3322 Prototype IDs (36) 720 Alien Tech Used (0) 0 Bonus (2777) 2777 TOTAL SCORE: 13509 Bonus ------- High Alert Combat Kills 147 Follower Combat Kills 2172 Network Hubs Disabled 200 Aligned with FarCom 300 Met Data Miner 300 Friendly Fire -342 Cogmind --------- Core Integrity 0/1000 Matter 172/300 Energy 99/100 System Corruption 6% Temperature Cool (0) Movement Core (50) Location -5/Factory Parts ------- > --- POWER (1) -------- (None) > --- PROPULSION (4) --- (None) > --- UTILITY (10) ----- (None) > --- WEAPON (2) ------- (None) > --- INVENTORY (5) ---- Improved Transmission Jammer Damper Plating Peak State ------------ > --- POWER ------------ Quantum Reactor > --- PROPULSION ------- Light Treads Armored Treads Centrium Heavy Treads > --- UTILITY ---------- Large Storage Unit Improved Trap Scanner Enhanced Optical Array Advanced Targeting Computer Improved Transmission Jammer Improved Light Armor Plating Heavy Reactive Plating Graphene Brace Improved Hacking Suite > --- WEAPON ----------- Cooled Plasma Rifle Advanced KE Penetrator > --- INVENTORY -------- Gyrokinetic Inverter Linear Gravjet Medium Storage Unit Advanced Weight Redist. System Armor Integrity Analyzer Matter Filter Cloak of Protection Damper Plating Trap Reconfigurator Advanced Variable Charge Gun Cooled Plasma Cannon Phasing Sabre [Rating: 99] Favorites ----------- Power Light Nuclear Core Engine Improved Deuterium Engine Power Core Light Nuclear Core Reactor Quantum Reactor Propulsion Improved Cesium-ion Thruster Treads Light Treads Leg Carbon-fiber Leg Wheel Wheel Hover Unit Gravmag Array Flight Unit Improved Cesium-ion Thruster Utility Medium Storage Unit Device Improved Heat Sink Storage Medium Storage Unit Processor Advanced Visual Processing Unit Hackware System Shield Protection Layered Medium Armor Plating Weapon Cooled Plasma Cannon Energy Gun Advanced Variable Charge Gun Energy Cannon Cooled Plasma Cannon Ballistic Gun AWS/Gauss Launcher Grenade Launcher Special Weapon Remote Datajack Impact Weapon Maul Slashing Weapon Phasing Sabre Piercing Weapon Lance Build | -11 -10 -10 -10 -9 -8 -8 -7 -7 -7 -7 -7 -7 -6 -6 -6 -6 -6 -6 -5 ------- Run | Scr Mat Min Exi Min Mat Sto Fac Was Fac Low Low Dat Pro Fac Ext Cet Arc Hub Fac Slots Evolved 10 | . . . . . 4 . 2 . . . . . . 2 . . . . 2 Power . | . . . . . . . . . . . . . . . . . . . . Propulsion 2 | . . . . . 2 . . . . . . . . . . . . . . Utility 8 | . . . . . 2 . 2 . . . . . . 2 . . . . 2 Weapon . | . . . . . . . . . . . . . . . . . . . . Parts Attached 155 | 5 1 . 4 . . 22 2 9 11 1 3 . . 10 23 9 3 7 45 Power 9 | 1 . . . . . 2 . . . . . . . . 1 1 . 1 3 Engine 3 | 1 . . . . . 1 . . . . . . . . 1 . . . . Core 4 | . . . . . . 1 . . . . . . . . . . . . 3 Reactor 2 | . . . . . . . . . . . . . . . . 1 . 1 . Propulsion 50 | 2 . . . . . 5 1 8 5 . 2 . . 1 11 1 1 2 11 Treads 11 | . . . . . . . 1 1 . . . . . . 5 1 1 2 . Leg 4 | . . . . . . 4 . . . . . . . . . . . . . Wheel 2 | 2 . . . . . . . . . . . . . . . . . . . Hover 14 | . . . . . . . . . . . . . . . 4 . . . 10 Flight 19 | . . . . . . 1 . 7 5 . 2 . . 1 2 . . . 1 Utility 61 | 1 1 . 2 . . 8 . 1 2 1 1 . . 5 8 3 2 4 22 Device 31 | . . . 2 . . 4 . 1 1 . 1 . . 3 5 1 . 1 12 Storage 4 | 1 . . . . . 1 . . . . . . . . . . . 1 1 Processor 10 | . 1 . . . . 2 . . 1 . . . . 2 . . . . 4 Hackware 5 | . . . . . . 1 . . . 1 . . . . . . . . 3 Protection 11 | . . . . . . . . . . . . . . . 3 2 2 2 2 Artifact . | . . . . . . . . . . . . . . . . . . . . Weapon 35 | 1 . . 2 . . 7 1 . 4 . . . . 4 3 4 . . 9 Energy Gun 6 | . . . . . . 2 . . . . . . . . . 2 . . 2 Energy Cannon 6 | . . . . . . 3 . . . . . . . . 2 1 . . . Ballistic Gun 14 | 1 . . 1 . . 1 1 . 3 . . . . 2 . 1 . . 4 Ballistic Cannon . | . . . . . . . . . . . . . . . . . . . . Launcher 2 | . . . 1 . . 1 . . . . . . . . . . . . . Special Weapon 1 | . . . . . . . . . . . . . . . . . . . 1 Impact Weapon 1 | . . . . . . . . . 1 . . . . . . . . . . Slashing Weapon 4 | . . . . . . . . . . . . . . 2 1 . . . 1 Piercing Weapon 1 | . . . . . . . . . . . . . . . . . . . 1 Special Melee Weapon . | . . . . . . . . . . . . . . . . . . . . Unidentified Prototypes 21 | . . . 3 . . 8 . 1 1 . . . . 1 1 4 . . 2 Corrupted Parts 2 | . . . . . . 2 . . . . . . . . . . . . . System Corruption 7 | . . . . . . 7 . . . . . . . . . . . . . Parts Lost 38 | . . 3 . . . . 1 3 . . . . . 1 5 . 2 4 19 Power 6 | . . 1 . . . . . . . . . . . . 1 . . 1 3 Propulsion 15 | . . 1 . . . . 1 3 . . . . . . 2 . 1 1 6 Utility 14 | . . 1 . . . . . . . . . . . 1 2 . 1 2 7 Weapon 3 | . . . . . . . . . . . . . . . . . . . 3 Highest Loss Streak 8 | . . 3 . . . . 1 3 . . . . . 1 2 . 2 1 8 To Critical Strikes . | . . . . . . . . . . . . . . . . . . . . Average Slot Usage (%) 75 | . 82 33 9 14 9 67 82 70 79 87 92 92 92 85 77 93 92 88 84 Engine 1 | . 14 5 . . . . . . . . . . . . 4 1 . . . Core 2 | . . . . . . 2 7 7 7 7 7 7 7 6 . . . . 1 Reactor 1 | . . . . . . . . . . . . . . . . 4 6 5 3 Treads 5 | . . . . . . . 1 3 . . . . . . 6 21 20 18 5 Leg 3 | . . . . . . 20 23 11 . . . . . . . . . . . Hover 3 | . . . . . . . . . . . . . . . 6 . . . 12 Flight 8 | . . . . . . 3 4 11 27 30 30 30 30 26 7 . . . . Device 8 | . . . 7 . . 2 . . 2 . 2 7 7 11 10 14 13 12 17 Storage 5 | . 14 5 . . . 2 7 7 7 7 7 7 7 6 6 6 6 6 4 Processor 10 | . 11 5 . . . 13 15 15 22 23 20 15 15 13 7 . . . 14 Hackware 8 | . . . . . . 7 7 7 7 10 15 15 15 13 10 6 6 3 7 Protection 5 | . . . . . . . . . . . . . . . 4 24 25 26 6 Energy Cannon 3 | . . . . . . 10 14 . . . . . . . 6 3 . . . Ballistic Gun 2 | . 14 5 . . . . . 3 3 7 7 7 7 1 2 4 6 6 2 Naked Turns 188 | . . 107 61 . . . . . . . . . . . . . . . 20 Heaviest Build 109 | 10 10 10 8 3 3 31 31 25 25 25 25 25 25 27 61 74 73 109 105 Greatest Support 123 | 20 20 20 3 3 3 60 45 70 25 25 34 25 25 34 80 120 123 123 120 Greatest Overweight (x) 8 | . . . 2 . . 8 . 1 1 . 1 . . 1 3 . . 1 3 Average Overweight (x) . | . . . . . . . . . . . . . . . . . . . . Largest Inventory Capacity 15 | 8 8 8 5 5 5 10 10 10 10 10 10 10 10 10 10 10 10 15 15 Average Capacity 9 | 6 8 6 5 5 5 6 10 10 10 10 10 10 10 10 10 10 10 14 11 Most Carried 15 | . 1 2 5 5 5 6 8 10 10 10 10 10 10 10 10 10 10 13 15 Average Carried 8 | . . 1 3 5 5 5 6 8 9 9 10 10 10 9 8 9 10 11 10 Final Capacity 15 | 8 8 5 5 5 5 10 10 10 10 10 10 10 10 10 10 10 10 15 5 Final Carried 12 | . 1 2 5 5 5 6 6 10 10 10 10 10 10 10 8 10 10 12 5 Class Distribution -------------------- 29% | Mutant 26% | Scavenger-Mutant 14% | Commander-Mutant 11% | Hacker-Mutant 9% | Hacker-Sprinter 6% | Sprinter Dominant Class ---------------- Mutant | -10/Materials Mutant | -10/Mines Mutant | -10/Exiles Mutant | -9/Mines Mutant | -8/Materials Mutant | -8/Storage Mutant | -7/Factory Mutant | -7/Waste Sprinter | -7/Factory Sprinter | -7/Lower Caves Hacker-Sprinter | -7/Lower Caves Hacker-Sprinter | -7/Data Miner Hacker-Sprinter | -6/Proximity Caves Hacker-Mutant | -6/Factory Commander-Mutant | -6/Extension Scavenger-Mutant | -6/Cetus Scavenger-Mutant | -6/Archives Scavenger-Mutant | -6/Hub_04(d) Scavenger-Mutant | -5/Factory Resources | -11 -10 -10 -10 -9 -8 -8 -7 -7 -7 -7 -7 -7 -6 -6 -6 -6 -6 -6 -5 ----------- Run | Scr Mat Min Exi Min Mat Sto Fac Was Fac Low Low Dat Pro Fac Ext Cet Arc Hub Fac Matter Collected 3902 | 178 72 34 . . . 310 3 60 40 11 . . 17 55 2357 116 88 166 395 Remotely . | . . . . . . . . . . . . . . . . . . . . Salvage Created 3884 | . 49 . . . . 338 116 . 67 . 3 . . 55 1630 93 241 572 720 Parts 214 | . 4 . . . . 18 7 . 5 . 1 . . 7 76 7 11 33 45 Haulers Intercepted 3 | . . . . . . . . . . . . . . . 2 . . . 1 Recyclers Shooed . | . . . . . . . . . . . . . . . . . . . . Parts Field Recycled . | . . . . . . . . . . . . . . . . . . . . Retrieved Matter . | . . . . . . . . . . . . . . . . . . . . Parts Self-Destructed 12 | . . . . . . . . . . . 7 . 5 . . . . . . Prevented 1 | . . . . . . . . . . . 1 . . . . . . . . Kills | -11 -10 -10 -10 -9 -8 -8 -7 -7 -7 -7 -7 -7 -6 -6 -6 -6 -6 -6 -5 ------- Run | Scr Mat Min Exi Min Mat Sto Fac Was Fac Low Low Dat Pro Fac Ext Cet Arc Hub Fac Combat Hostiles Destroyed 65 | . 3 . . . . 8 1 . 2 . 3 . . . 19 2 3 11 13 Melee 3 | . . . . . . . . . . . . . . . . . . . 3 Guns 45 | . 3 . . . . . . . 2 . 3 . . . 11 2 3 11 10 Cannons 15 | . . . . . . 8 1 . . . . . . . 6 . . . . Classes Destroyed 17 | . 1 . . . . 3 1 . 1 . 1 . . 3 3 . . 3 1 Worker 2 | . . . . . . . . . . . . . . 1 . . . 1 . Builder 2 | . . . . . . . . . . . . . . 1 1 . . . . Tunneler 1 | . . . . . . . . . . . . . . 1 . . . . . Hauler 3 | . . . . . . . . . . . . . . . 2 . . . 1 Recycler 2 | . . . . . . . 1 . . . . . . . 1 . . . . Watcher 3 | . . . . . . . . . . . . . . . . . . 1 2 Swarmer 17 | . 3 . . . . 2 . . 1 . . . . . . . . 5 6 Cutter 2 | . . . . . . . . . . . . . . . . . . . 2 Grunt 13 | . . . . . . 2 . . . . . . . . 7 2 . . 2 Brawler 2 | . . . . . . 1 . . . . . . . . 1 . . . . Sentry 17 | . . . . . . 3 1 . . . . . . . 6 . 3 2 2 Specialist 1 | . . . . . . . . . . . . . . . . . . 1 . Hunter 4 | . . . . . . . . . . . . . . . 2 . . 2 . Programmer 2 | . . . . . . . . . 1 . . . . . . . . . 1 Heavy 1 | . . . . . . . . . . . . . . . . . . 1 . Behemoth 2 | . . . . . . . . . . . . . . . 2 . . . . Master Thief 3 | . . . . . . . . . . . 3 . . . . . . . . Thug 1 | . . . . . . . . . . . . . . . 1 . . . . Best Kill Streak 4 | . 3 . . . . 2 2 . 1 . 3 . . 2 4 2 3 4 4 Combat Bots Only 4 | . 3 . . . . 2 1 . 1 . 3 . . . 3 2 3 3 4 Max Kills in Single Turn 2 | . 1 . . . . 1 1 . 1 . 1 . . 1 2 1 1 2 1 Gunslinging 1 | . . . . . . . . . . . . . . . . . . 1 . Exploded . | . . . . . . . . . . . . . . . . . . . . Melee 1 | . . . . . . . . . . . . . . . . . . . 1 Uniques/NPCs Destroyed . | . . . . . . . . . . . . . . . . . . . . Combat | -11 -10 -10 -10 -9 -8 -8 -7 -7 -7 -7 -7 -7 -6 -6 -6 -6 -6 -6 -5 -------- Run | Scr Mat Min Exi Min Mat Sto Fac Was Fac Low Low Dat Pro Fac Ext Cet Arc Hub Fac Damage Taken 8481 | . 180 245 . . 73 547 118 118 48 . 13 . 22 123 1246 585 502 1543 3118 Core 1920 | . 61 149 . . 43 148 35 30 16 . 3 . 6 24 232 18 . 145 1010 Absorbed by Shields 10 | . . . . . . . . . . . . . . . 10 . . . . Core Remaining (%) 63 | 100 . . . 16 . 65 . . . . . . 87 . . . . 50 . Volleys Fired 177 | . 12 . . . . 42 4 . . . . . . . 20 17 11 33 38 Largest 2 | . 1 . . . . 2 2 . . . . . . . 2 2 2 2 2 Hottest 210 | . 20 . . . . 135 135 . . . . . . . 210 210 115 115 104 Shots Fired 348 | . 12 . . . . 44 11 . 5 . 32 . . . 79 33 19 64 49 Gun 246 | . 12 . . . . . 4 . 5 . 32 . . . 42 19 19 64 49 Cannon 102 | . . . . . . 44 7 . . . . . . . 37 14 . . . Launcher . | . . . . . . . . . . . . . . . . . . . . Special . | . . . . . . . . . . . . . . . . . . . . Kinetic 178 | . 12 . . . . . 4 . 5 . 32 . . . 42 10 11 32 30 Thermal 170 | . . . . . . 44 7 . . . . . . . 37 23 8 32 19 Explosive . | . . . . . . . . . . . . . . . . . . . . Electromagnetic . | . . . . . . . . . . . . . . . . . . . . Robot Hit Streak 15 | . 3 . . . . 6 4 . 3 . 5 . . . 15 11 7 9 8 Robot Miss Streak 4 | . 3 . . . . 4 3 . 2 . 4 . . . 2 2 2 2 2 Penetration Max 1 | . . . . . . . . . . . . . . . . . . 1 . Secondary Targets 6 | . . . . . . . . . . . . . . . . 1 1 4 . Max Gunslinging Chain 1 | . . . . . . . . . . . . . . . . 1 1 1 . Autonomous 84 | . . . . . . . 4 . 5 . 32 . . . 43 . . . . Shots Hit Robots 241 | . 6 . . . . 21 8 . 3 . 15 . . 4 62 25 14 41 42 Core Hits 110 | . 3 . . . . 8 5 . 2 . 5 . . 1 31 8 6 19 22 Critical Kills 5 | . 1 . . . . . . . . . . . . . . . 3 1 . Critical Parts Destroyed 6 | . . . . . . . . . . . . . . . . 2 1 2 1 Critical Strikes 12 | . 1 . . . . . . . . . . . . . . 2 4 4 1 Destroy 12 | . 1 . . . . . . . . . . . . . . 2 4 4 1 Melee Attacks 58 | . . . . . . . . . 2 . . . . 34 4 . . . 18 Impact 2 | . . . . . . . . . 2 . . . . . . . . . . Slashing 52 | . . . . . . . . . . . . . . 34 4 . . . 14 Piercing 4 | . . . . . . . . . . . . . . . . . . . 4 Sneak Attacks 7 | . . . . . . . . . . . . . . 4 2 . . . 1 Combat Hostiles . | . . . . . . . . . . . . . . . . . . . . Follow-up Attacks . | . . . . . . . . . . . . . . . . . . . . Damage Inflicted 9108 | . 71 5 . . . 715 315 . 103 . 578 . . 335 3190 948 382 1197 1269 Guns 4913 | . 71 . . . . . 102 . 103 . 578 . . . 1206 431 382 1197 843 Cannons 3027 | . . . . . . 704 213 . . . . . . . 1593 517 . . . Explosions 101 | . . . . . . . . . . . . . . . 101 . . . . Melee 1051 | . . . . . . . . . . . . . . 335 290 . . . 426 Ramming 16 | . . 5 . . . 11 . . . . . . . . . . . . . Kinetic 3638 | . 71 . . . . . 102 . 103 . 578 . . . 1206 208 212 645 513 Thermal 4403 | . . . . . . 704 213 . . . . . . . 1694 740 170 552 330 Explosive . | . . . . . . . . . . . . . . . . . . . . Electromagnetic . | . . . . . . . . . . . . . . . . . . . . Impact . | . . . . . . . . . . . . . . . . . . . . Slashing 1015 | . . . . . . . . . . . . . . 335 290 . . . 390 Piercing 36 | . . . . . . . . . . . . . . . . . . . 36 Highest Corruption 8 | . . . . . . 8 . . . . . . . . . . . 4 6 Average Corruption 5 | . . . . . . 6 . . . . . . . . . . . 2 4 Corruption Purged . | . . . . . . . . . . . . . . . . . . . . Corruption Blocked . | . . . . . . . . . . . . . . . . . . . . Effects 46 | . . . . . . 26 . . . . . . . . . . . 7 13 Message Errors 11 | . . . . . . 7 . . . . . . . . . . . . 4 Matter Fused 11 | . . . . . . 7 . . . . . . . . . . . 1 3 Heat Flow Errors 5 | . . . . . . 3 . . . . . . . . . . . 1 1 Energy Discharges 6 | . . . . . . 2 . . . . . . . . . . . 1 3 Parts Rejected 2 | . . . . . . . . . . . . . . . . . . . 2 Data Loss (minor) 4 | . . . . . . 3 . . . . . . . . . . . 1 . Data Loss (major) 2 | . . . . . . 2 . . . . . . . . . . . . . Alerts 2 | . . . . . . 1 . . . . . . . . . . . 1 . Weapon Failures 3 | . . . . . . 1 . . . . . . . . . . . 2 . Overload Shots 46 | . . . . . . 1 . . . . . . . . 34 11 . . . Effects 2 | . . . . . . . . . . . . . . . 1 1 . . . Energy Bleed 1 | . . . . . . . . . . . . . . . . 1 . . . Heat Surge 1 | . . . . . . . . . . . . . . . 1 . . . . Overflow Damage 330 | . . . . . . 37 . . . . . . . 131 154 . . . 8 Projectiles 150 | . . . . . . 37 . . . . . . . . 113 . . . . Explosions 41 | . . . . . . . . . . . . . . . 41 . . . . Melee 139 | . . . . . . . . . . . . . . 131 . . . . 8 Knockbacks 1 | . . . . . . 1 . . . . . . . . . . . . . Impact 1 | . . . . . . 1 . . . . . . . . . . . . . Kinetic . | . . . . . . . . . . . . . . . . . . . . Secondary . | . . . . . . . . . . . . . . . . . . . . Self-Inflicted Damage 2 | . . 2 . . . . . . . . . . . . . . . . . Shots . | . . . . . . . . . . . . . . . . . . . . Rammed 2 | . . 2 . . . . . . . . . . . . . . . . . Targets Rammed 3 | . . 2 . . . 1 . . . . . . . . . . . . . Kicked 1 | . . . . . . 1 . . . . . . . . . . . . . Crushed . | . . . . . . . . . . . . . . . . . . . . Highest Temperature 343 | . . . . . . 259 159 . . . . . . 2 343 333 63 153 321 Average Temperature 103 | . . . . . . 96 77 . . . . . . 2 115 106 28 64 138 Received Heat Transfer 1050 | . 45 . . . . 45 36 . . . . . 6 45 303 171 99 66 234 Effects 2 | . . . . . . . . . . . . . . . 2 . . . . Shutdowns 1 | . . . . . . . . . . . . . . . 1 . . . . Short Circuit 1 | . . . . . . . . . . . . . . . 1 . . . . Siege Activations . | . . . . . . . . . . . . . . . . . . . . Robots Corrupted . | . . . . . . . . . . . . . . . . . . . . Combat Hostiles . | . . . . . . . . . . . . . . . . . . . . Parts Fried 4 | . . . . . . . . . . . . . . . 1 . . . 3 Impact Corruptions . | . . . . . . . . . . . . . . . . . . . . Robots Melted 2 | . . . . . . . . . . . . . . . 2 . . . . Combat Hostiles 2 | . . . . . . . . . . . . . . . 2 . . . . Parts Melted 11 | . . . . . . 2 1 . . . . . . . 7 . . 1 . Heat Transferred 5762 | . . . . . . 1050 275 . . . . . . . 1960 956 222 740 559 Parts Sabotaged . | . . . . . . . . . . . . . . . . . . . . Parts Stolen . | . . . . . . . . . . . . . . . . . . . . Parts Stripped . | . . . . . . . . . . . . . . . . . . . . Power Chain Reactions . | . . . . . . . . . . . . . . . . . . . . Missiles Intercepted . | . . . . . . . . . . . . . . . . . . . . Alert | -11 -10 -10 -10 -9 -8 -8 -7 -7 -7 -7 -7 -7 -6 -6 -6 -6 -6 -6 -5 ------- Run | Scr Mat Min Exi Min Mat Sto Fac Was Fac Low Low Dat Pro Fac Ext Cet Arc Hub Fac Peak Influence 557 | . 85 33 . . 153 457 144 83 495 . . . . 348 382 450 341 493 557 Initial 233 | . . 33 . . . 64 102 50 25 . . . . 37 126 141 180 119 233 Average 207 | . 47 14 . . 60 159 118 49 378 . . . . 187 186 316 301 305 323 Maximum Alert Level 2 | . . . . . . 2 . . 2 . . . . 1 1 2 1 2 2 Low Security (%) 48 | 100 100 100 . 100 100 63 100 100 17 . . . . 65 42 35 9 33 9 Level 1 38 | . . . . . . 32 . . 12 . . . . 34 57 12 90 33 64 Level 2 12 | . . . . . . 4 . . 69 . . . . . . 51 . 33 26 Level 3 . | . . . . . . . . . . . . . . . . . . . . Level 4 . | . . . . . . . . . . . . . . . . . . . . Level 5 . | . . . . . . . . . . . . . . . . . . . . High Security . | . . . . . . . . . . . . . . . . . . . . Max Security . | . . . . . . . . . . . . . . . . . . . . Squads Dispatched 28 | . . . . . 1 2 . . 4 . . . . 2 2 . . 8 9 Investigation 4 | . . . . . . . . . . . . . . 1 1 . . 1 1 Extermination 1 | . . . . . . . . . . . . . . . . . . . 1 Reinforcement 19 | . . . . . 1 2 . . 1 . . . . 1 1 . . 7 6 Assault . | . . . . . . . . . . . . . . . . . . . . Garrison 4 | . . . . . . . . . 3 . . . . . . . . . 1 Intercept . | . . . . . . . . . . . . . . . . . . . . Searches Triggered 1 | . . . . . . . . . . . . . . . . . . . 1 Data Miner Redirects 3 | . . . . . . . . . . . . . . 1 1 . . . 1 Construction Impeded 2 | . . . . . . . . . . . . . . . 1 . . 1 . Haulers Reinforced 1 | . . . . . . . . . 1 . . . . . . . . . . Active Scanning Responses . | . . . . . . . . . . . . . . . . . . . . Cargo Convoy Interrupts 1 | . . . . . . . . . . . . . . . . . . . 1 Stealth | -11 -10 -10 -10 -9 -8 -8 -7 -7 -7 -7 -7 -7 -6 -6 -6 -6 -6 -6 -5 --------- Run | Scr Mat Min Exi Min Mat Sto Fac Was Fac Low Low Dat Pro Fac Ext Cet Arc Hub Fac Distress Signals 17 | . . . . . 1 6 . . 2 . . . . 2 2 1 . 1 2 Communications Jammed . | . . . . . . . . . . . . . . . . . . . . Distress Signals . | . . . . . . . . . . . . . . . . . . . . Times Spotted 235 | . 9 16 . . 10 21 3 4 5 . 5 . 1 13 32 18 4 26 68 Peak Tracking Total 15 | . 6 14 . . 11 4 2 3 4 . 5 . 1 5 5 5 2 5 15 Tactical Retreats 22 | . . 1 . . 1 . . . . . . . . 6 . . . 3 11 Traps | -11 -10 -10 -10 -9 -8 -8 -7 -7 -7 -7 -7 -7 -6 -6 -6 -6 -6 -6 -5 ------- Run | Scr Mat Min Exi Min Mat Sto Fac Was Fac Low Low Dat Pro Fac Ext Cet Arc Hub Fac Traps Triggered 9 | . . . . . . 1 1 . . . . . . 2 2 . . 1 2 Indirectly . | . . . . . . . . . . . . . . . . . . . . Trap Hack Attempts . | . . . . . . . . . . . . . . . . . . . . Triggered . | . . . . . . . . . . . . . . . . . . . . Disarmed . | . . . . . . . . . . . . . . . . . . . . Reprogrammed . | . . . . . . . . . . . . . . . . . . . . Reused 2 | . . . . . . . . . . . . . . . . . . . 2 Traps Reconfigurated 10 | . . . . . . . . . . . . . . . 6 . . . 4 Traps Extracted . | . . . . . . . . . . . . . . . . . . . . Installed . | . . . . . . . . . . . . . . . . . . . . Triggered 2 | . . . . . . . . . . . . . . . . . . . 2 Machines | -11 -10 -10 -10 -9 -8 -8 -7 -7 -7 -7 -7 -7 -6 -6 -6 -6 -6 -6 -5 ---------- Run | Scr Mat Min Exi Min Mat Sto Fac Was Fac Low Low Dat Pro Fac Ext Cet Arc Hub Fac Machines Disabled 23 | . . . . . . 9 . . 1 . . . . . 4 3 2 4 . Max in Single Turn 2 | . . . . . . 1 . . 1 . . . . . 2 2 1 1 . Garrison Access 4 | . . . . . . . . . . . . . . 2 . . . 1 1 Network Hub 1 | . . . . . . . . . . . . . . . . . . 1 . Energy Cycler 1 | . . . . . . . . . . . . . . . 1 . . . . Machines Sabotaged . | . . . . . . . . . . . . . . . . . . . . Garrisons Compromised . | . . . . . . . . . . . . . . . . . . . . Overloaded Fab Kills . | . . . . . . . . . . . . . . . . . . . . Hacking | -11 -10 -10 -10 -9 -8 -8 -7 -7 -7 -7 -7 -7 -6 -6 -6 -6 -6 -6 -5 --------- Run | Scr Mat Min Exi Min Mat Sto Fac Was Fac Low Low Dat Pro Fac Ext Cet Arc Hub Fac Machines Accessed 43 | . . . 1 . 1 4 3 . 3 3 . 4 . 6 9 2 . 3 4 Terminals 27 | . . . . . 1 4 2 . 2 . . . . 3 8 2 . 2 3 Fabricators 1 | . . . . . . . . . . . . . . 1 . . . . . Repair Stations . | . . . . . . . . . . . . . . . . . . . . Recycling Units 1 | . . . . . . . . . . . . . . . 1 . . . . Scanalyzers . | . . . . . . . . . . . . . . . . . . . . Garrison Access 6 | . . . . . . . 1 . 1 . . . . 2 . . . 1 1 Total Hacks 147 | . . . 9 . 7 13 10 . 5 3 . 31 . 18 30 8 . 5 8 Successful 94 | . . . 9 . 4 5 4 . 1 3 . 31 . 8 18 4 . 4 3 Failed 53 | . . . . . 3 8 6 . 4 . . . . 10 12 4 . 1 5 Catastrophic 6 | . . . . . . . . . 1 . . . . 1 1 1 . . 2 Database Lockouts . | . . . . . . . . . . . . . . . . . . . . Manual 38 | . . . 1 . 3 1 8 . 1 . . . . 3 19 . . . 2 Terminals 90 | . . . . . 7 13 9 . 4 . . . . 11 27 8 . 4 7 Fabricators 4 | . . . . . . . . . . . . . . 4 . . . . . Repair Stations . | . . . . . . . . . . . . . . . . . . . . Recycling Units 3 | . . . . . . . . . . . . . . . 3 . . . . Scanalyzers . | . . . . . . . . . . . . . . . . . . . . Garrison Access 7 | . . . . . . . 1 . 1 . . . . 3 . . . 1 1 Terminal Hacks 79 | . . . 9 . 4 5 2 . 1 3 . 31 . 3 12 4 . 3 2 Record 25 | . . . 9 . . . . . . . . 11 . . 1 4 . . . Part Schematic 14 | . . . . . . . . . . . . 11 . . 2 . . 1 . Robot Schematic 6 | . . . . . . . . . . . . 6 . . . . . . . Prototype ID Bank 5 | . . . . . . . . . 1 . . 3 . . . . . . 1 Open Door 7 | . . . . . . 2 . . . 3 . . . . 2 . . . . Open DSF 1 | . . . . . . . 1 . . . . . . . . . . . . Level Access Points 1 | . . . . . 1 . . . . . . . . . . . . . . Branch Access Points 3 | . . . . . 1 . 1 . . . . . . 1 . . . . . Machine Index 1 | . . . . . . . . . . . . . . . 1 . . . . Alert Level 1 | . . . . . . . . . . . . . . . 1 . . . . Unreport Threat 4 | . . . . . . 1 . . . . . . . . 3 . . . . Locate Traps 5 | . . . . . 1 1 . . . . . . . 2 1 . . . . Dispatch Records 2 | . . . . . . 1 . . . . . . . . 1 . . . . Patrol Status 1 | . . . . . . . . . . . . . . . . . . . 1 Zone Layout 3 | . . . . . 1 . . . . . . . . . . . . 2 . Fabricator Hacks 2 | . . . . . . . . . . . . . . 2 . . . . . Load Schematic 1 | . . . . . . . . . . . . . . 1 . . . . . Build 1 | . . . . . . . . . . . . . . 1 . . . . . Repair Station Hacks . | . . . . . . . . . . . . . . . . . . . . Recycling Unit Hacks 1 | . . . . . . . . . . . . . . . 1 . . . . Report Inventory 1 | . . . . . . . . . . . . . . . 1 . . . . Scanalyzer . | . . . . . . . . . . . . . . . . . . . . Garrison Access Hacks 4 | . . . . . . . . . . . . . . 2 . . . 1 1 Seal Access 4 | . . . . . . . . . . . . . . 2 . . . 1 1 Unauthorized Hacks 8 | . . . . . . . 2 . . . . . . 1 5 . . . . Terminals 7 | . . . . . . . 2 . . . . . . 1 4 . . . . Assimilate 2 | . . . . . . . 1 . . . . . . . 1 . . . . Botnet 5 | . . . . . . . 1 . . . . . . 1 3 . . . . Fabricators . | . . . . . . . . . . . . . . . . . . . . Repair Stations . | . . . . . . . . . . . . . . . . . . . . Recycling Units 1 | . . . . . . . . . . . . . . . 1 . . . . Reject 1 | . . . . . . . . . . . . . . . 1 . . . . Scanalyzers . | . . . . . . . . . . . . . . . . . . . . Garrison Access . | . . . . . . . . . . . . . . . . . . . . Data Cores Recovered . | . . . . . . . . . . . . . . . . . . . . Used . | . . . . . . . . . . . . . . . . . . . . Hacking Detections 27 | . . . . . 1 2 2 . 3 . . . . 5 7 2 . 2 3 Full Trace Events 2 | . . . . . . 1 . . . . . . . 1 . . . . . Feedback Events 1 | . . . . . . 1 . . . . . . . . . . . . . Corruption 1 | . . . . . . 1 . . . . . . . . . . . . . Feedback Blocked . | . . . . . . . . . . . . . . . . . . . . Robot Schematics Acquired 6 | . . . . . . . . . . . . 6 . . . . . . . Robots Built 1 | . . . . . . . . . . . . . . 1 . . . . . Authchips . | . . . . . . . . . . . . . . . . . . . . Time 152 | . . . . . . . . . . . . . . 152 . . . . . Total Robot Build Rating 5 | . . . . . . . . . . . . . . 5 . . . . . Part Schematics Acquired 14 | . . . . . . . . . . . . 11 . . 2 . . 1 . Parts Built . | . . . . . . . . . . . . . . . . . . . . Authchips . | . . . . . . . . . . . . . . . . . . . . Time . | . . . . . . . . . . . . . . . . . . . . Total Part Build Rating . | . . . . . . . . . . . . . . . . . . . . Parts Repaired . | . . . . . . . . . . . . . . . . . . . . Time . | . . . . . . . . . . . . . . . . . . . . Parts Recycled . | . . . . . . . . . . . . . . . . . . . . Recycled Matter . | . . . . . . . . . . . . . . . . . . . . Retrieved Matter . | . . . . . . . . . . . . . . . . . . . . Retrieved Components . | . . . . . . . . . . . . . . . . . . . . Parts Scanalyzed . | . . . . . . . . . . . . . . . . . . . . Part Schematics Acquired . | . . . . . . . . . . . . . . . . . . . . Parts Damaged . | . . . . . . . . . . . . . . . . . . . . Bothacking | -11 -10 -10 -10 -9 -8 -8 -7 -7 -7 -7 -7 -7 -6 -6 -6 -6 -6 -6 -5 ------------ Run | Scr Mat Min Exi Min Mat Sto Fac Was Fac Low Low Dat Pro Fac Ext Cet Arc Hub Fac Used RIF Installer . | . . . . . . . . . . . . . . . . . . . . Robots Hacked . | . . . . . . . . . . . . . . . . . . . . Non-combat . | . . . . . . . . . . . . . . . . . . . . Combat . | . . . . . . . . . . . . . . . . . . . . Robot Hacks Applied . | . . . . . . . . . . . . . . . . . . . . Relay Couplers Released . | . . . . . . . . . . . . . . . . . . . . Fabnet Peak Effective % . | . . . . . . . . . . . . . . . . . . . . Robots Rewired 22 | . . . . . . . . . . . . . . . 22 . . . . Allies Hacked . | . . . . . . . . . . . . . . . . . . . . Hacks Repelled . | . . . . . . . . . . . . . . . . . . . . Allies | -11 -10 -10 -10 -9 -8 -8 -7 -7 -7 -7 -7 -7 -6 -6 -6 -6 -6 -6 -5 -------- Run | Scr Mat Min Exi Min Mat Sto Fac Was Fac Low Low Dat Pro Fac Ext Cet Arc Hub Fac Total Allies 51 | . . 3 . . . 2 . 20 . . . . 1 1 24 . . . . Largest Group 19 | . . 3 . . . 2 . 19 13 4 2 1 2 1 13 4 1 1 . Highest-Rated Group 465 | . . 40 . . . 111 . 465 381 124 70 35 131 23 362 186 99 99 . Highest-Rated Ally 100 | . . 16 . . . 100 . 35 35 35 35 35 96 23 99 99 99 99 . Total Orders 5 | . . . . . . 3 . . . . . . . . . 1 . . 1 ROAM 1 | . . . . . . . . . . . . . . . . 1 . . . EXPLORE 4 | . . . . . . 3 . . . . . . . . . . . . 1 Ally Attacks 422 | . . 15 . . . 31 . 90 62 . 14 . 10 . 153 33 3 11 . Total Damage 13269 | . . 128 . . . 1093 . 3029 1327 . 1563 . 305 . 3146 1706 227 745 . Kills 86 | . . 1 . . . 10 . 10 17 . 9 . 3 . 20 11 1 4 . Allies Corrupted 1 | . . . . . . 1 . . . . . . . . . . . . . Allies Melted . | . . . . . . . . . . . . . . . . . . . . Intel | -11 -10 -10 -10 -9 -8 -8 -7 -7 -7 -7 -7 -7 -6 -6 -6 -6 -6 -6 -5 ------- Run | Scr Mat Min Exi Min Mat Sto Fac Was Fac Low Low Dat Pro Fac Ext Cet Arc Hub Fac Robot Analysis Total . | . . . . . . . . . . . . . . . . . . . . Derelict Logs Recovered 5 | . . 2 . 1 . . . . . 1 1 . . . . . . . . Drone Launches 16 | . . . . . . 14 . . . . . . . . . . . . 2 Drone Recoveries 7 | . . . . . . 7 . . . . . . . . . . . . . Exploration | -11 -10 -10 -10 -9 -8 -8 -7 -7 -7 -7 -7 -7 -6 -6 -6 -6 -6 -6 -5 ------------- Run | Scr Mat Min Exi Min Mat Sto Fac Was Fac Low Low Dat Pro Fac Ext Cet Arc Hub Fac Turns Passed 8109 | 27 101 176 174 240 53 996 198 349 282 214 207 32 93 640 2097 373 151 586 1120 Spaces Moved 8533 | 25 94 223 322 390 106 587 152 367 539 593 649 97 333 884 1483 185 73 275 1156 Core 1266 | 1 . 138 322 390 106 267 . . . . . . . . . . . . 42 Treads 1100 | . . . . . . . . 31 . . . . . . 344 185 73 275 192 Legs 610 | . . . . . . 320 152 138 . . . . . . . . . . . Wheels 203 | 24 94 85 . . . . . . . . . . . . . . . . . Hover 1507 | . . . . . . . . . . . . . . . 585 . . . 922 Flight 3847 | . . . . . . . . 198 539 593 649 97 333 884 554 . . . . Fastest Speed 26 | 50 80 50 50 50 50 50 120 26 28 28 28 28 28 28 29 160 160 160 45 Average Speed 73 | 78 80 61 50 50 50 134 120 76 30 28 28 28 28 54 105 160 160 170 72 Slowest Speed 450 | 80 80 80 150 50 50 450 120 160 112 28 102 28 28 96 320 160 160 245 200 Overloaded Moves . | . . . . . . . . . . . . . . . . . . . . Propulsion Burnouts . | . . . . . . . . . . . . . . . . . . . . Robots Hopped 11 | . . . . . . . . . 1 2 . . . 6 2 . . . . Cave-ins Triggered . | . . . . . . . . . . . . . . . . . . . . Exploration Rate (%) 54 | 2 27 48 70 76 21 89 9 95 24 78 61 79 51 35 97 70 76 36 49 Regions Visited 19 Branch Regions 12 Pre-discovered Areas 2 | . . . . . . 1 . . . . . 1 . . . . . . . Known Exits Taken 9 | . . . . . 1 1 . . 1 1 1 1 1 1 . . . 1 . Unknown Exits Taken 8 | 1 1 1 1 1 . . . . . . . . . . 1 1 1 . . Scrap Searched 7 | . . 2 . . . . . . . 2 2 . 1 . . . . . . Spaces Dug 42 | . . . . . . 3 1 . 2 . . . . 29 1 . . . 6 Terrain Destroyed 151 | . . . . . . 13 2 . 5 . 23 . . 29 43 3 3 18 12 Melee 36 | . . . . . . . . . 2 . . . . 29 . . . . 5 Projectile 99 | . . . . . . 13 2 . 3 . 23 . . . 27 3 3 18 7 AOE 16 | . . . . . . . . . . . . . . . 16 . . . . Terrain Rammed . | . . . . . . . . . . . . . . . . . . . . Walls Destroyed . | . . . . . . . . . . . . . . . . . . . . Machines Disabled . | . . . . . . . . . . . . . . . . . . . . Actions | -11 -10 -10 -10 -9 -8 -8 -7 -7 -7 -7 -7 -7 -6 -6 -6 -6 -6 -6 -5 --------- Run | Scr Mat Min Exi Min Mat Sto Fac Was Fac Low Low Dat Pro Fac Ext Cet Arc Hub Fac Total 9978 | 29 107 261 334 434 105 745 160 436 654 640 672 101 332 988 1970 228 88 325 1369 Wait 695 | . . 36 . 45 . 81 . 48 94 40 18 5 . 20 228 8 1 4 67 Move 8493 | 24 93 222 321 389 105 586 152 366 536 588 648 96 332 871 1478 184 72 274 1156 Hop 11 | . . . . . . . . . 1 2 . . . 6 2 . . . . Pick Up 45 | . 1 1 4 . . 1 . 4 1 4 . . . 2 8 2 . 4 13 Fast Attach 103 | 5 1 . 2 . . 21 1 6 6 . 3 . . 6 15 7 2 4 24 Attach 41 | . . . 2 . . 1 1 3 4 1 . . . 4 6 . . 2 17 Detach 22 | . . . 2 . . 1 2 1 4 . . . . 2 2 1 . . 7 Swap 11 | . . . . . . . . . 1 . . . . . 2 2 1 1 4 Drop 91 | . . . 3 . . 11 . 8 5 5 3 . . 7 13 7 1 3 25 Fire 177 | . 12 . . . . 42 4 . . . . . . . 20 17 11 33 38 Melee 58 | . . . . . . . . . 2 . . . . 34 4 . . . 18 Ram 2 | . . 2 . . . . . . . . . . . . . . . . . Kick 1 | . . . . . . 1 . . . . . . . . . . . . . Crush . | . . . . . . . . . . . . . . . . . . . . Escape Stasis 71 | . . . . . . . . . . . . . . 36 35 . . . . Rewire 157 | . . . . . . . . . . . . . . . 157 . . . . Trap . | . . . . . . . . . . . . . . . . . . . . Miscellaneous . | . . . . . . . . . . . . . . . . . . . . Route ------- -11/Scrapyard -10/Materials -10/Mines (discovered 2 exits: [*Mat] / *Exi) -10/Exiles -9/Mines (discovered 2 exits: *Mat x2) -8/Materials (discovered 4 exits: Fac x3 / *Sto) -8/Storage -7/Factory (discovered 2 exits: Low x2) -7/Waste -7/Factory -7/Lower Caves -7/Lower Caves -7/Data Miner -6/Proximity Caves -6/Factory (discovered 5 exits: *Fac / Low x2 / *Ext x2) -6/Extension (discovered 3 exits: *Fac x2 / *Cet) -6/Cetus -6/Archives (discovered 2 exits: *Fac / *Hub) -6/Hub_04(d) -5/Factory (discovered 2 exits: [*Upp x2]) History --------- Turn | Location | Event 13 | -11/Scrapyard | Discovered new exit (range 15) 28 | -11/Scrapyard | Entered Materials 113 | -10/Materials | Discovered new exit (range 14) 129 | -10/Materials | Entered Mines 176 | -10/Mines | Assembled infested the area 198 | -10/Mines | Released all parts (3) 200 | -10/Mines | Core integrity fell below 50% 211 | -10/Mines | Assisted by bots powering up and referring to "LRC-V3" 226 | -10/Mines | Lost 3 parts (1p1n1u) 264 | -10/Mines | Core integrity fell below 20% 287 | -10/Mines | YI-UF0 nonchalantly dropped a Grenade Launcher on the ground 287 | -10/Mines | Discovered new exit (range 9) 303 | -10/Mines | Deemed a non-threat by the Exiles lab entrance 303 | -10/Mines | Discovered new exit (range 5) 305 | -10/Mines | Entered Exiles 309 | -10/Exiles | Build established: Mutant 318 | -10/Exiles | Met 8R-AWN 330 | -10/Exiles | Met EX-HEX 344 | -10/Exiles | Met EX-BIN 350 | -10/Exiles | Aligned with FarCom system 351 | -10/Exiles | Given EX-Vault access code 362 | -10/Exiles | Opened EX-Vault 365 | -10/Exiles | Found Prototype Device 365 | -10/Exiles | Identified Cloak of Protection 367 | -10/Exiles | Found Prototype Device 367 | -10/Exiles | Identified Trap Reconfigurator 371 | -10/Exiles | Found Prototype Ballistic Gun 383 | -10/Exiles | Warned to stay clear of 0b10 Research branches 397 | -10/Exiles | Met EX-DEC 453 | -10/Exiles | Identified AWS/Gauss 474 | -10/Exiles | Discovered new exit (range 10) 479 | -10/Exiles | Stole three prototypes: Cloak of Protection, Trap Reconfigurator, AWS/Gauss 479 | -10/Exiles | Entered Mines 484 | -9/Mines | Discovered new exit (range 9) 577 | -9/Mines | Learned Materials stockpile data 597 | -9/Mines | Discovered new exit (range 3) 719 | -9/Mines | Entered Materials 719 | -8/Materials | Evolved 4 slots: Propulsion x2, Utility x2 720 | -8/Materials | Identified exit to Storage 727 | -8/Materials | Identified exit to Factory 772 | -8/Materials | Entered Storage 1131 | -8/Storage | Learned location of Armory (-3) 1176 | -8/Storage | Discovered exit to Factory (range 19) 1251 | -8/Storage | Met 01-MTF 1768 | -8/Storage | Entered Factory 1768 | -7/Factory | Evolved 2 slots: Utility x2 1770 | -7/Factory | FarCom data flow suspended 1822 | -7/Factory | Identified exit to DSF 1941 | -7/Factory | Identified exit to Lower Caves 1966 | -7/Factory | Garrison activated, responded to threat 1966 | -7/Factory | Sucked down chute 1966 | -7/Factory | Entered Waste 1967 | -7/Waste | Met a frightened Derelict 1971 | -7/Waste | Spotted C-40 Crusher 1975 | -7/Waste | Spotted C-40 Crusher 2025 | -7/Waste | Spotted C-40 Crusher 2055 | -7/Waste | Warlord forces began an assault 2064 | -7/Waste | Allies destroyed C-40 Crusher 2066 | -7/Waste | Allies destroyed C-40 Crusher 2123 | -7/Waste | Spotted C-40 Crusher 2128 | -7/Waste | Allies destroyed C-40 Crusher 2156 | -7/Waste | Found Damper Plating 2166 | -7/Waste | Spotted C-40 Crusher 2166 | -7/Waste | Spotted C-40 Crusher 2180 | -7/Waste | Allies destroyed C-40 Crusher 2188 | -7/Waste | Allies destroyed C-40 Crusher 2217 | -7/Waste | Lost 3 parts (3n) 2263 | -7/Waste | Discovered new exit (range 12) 2315 | -7/Waste | Entered Factory 2315 | -7/Factory | Accompanied by 13 allies 2361 | -7/Factory | Garrison activated, responded to threat 2501 | -7/Factory | Discovered exit to Lower Caves (range 11) 2535 | -7/Factory | Build established: Sprinter 2597 | -7/Factory | Entered Lower Caves 2597 | -7/Lower Caves | Accompanied by 4 allies 2610 | -7/Lower Caves | Identified exit to Lower Caves 2630 | -7/Lower Caves | Found Prototype Device 2682 | -7/Lower Caves | Spotted B-75 Beast 2711 | -7/Lower Caves | Encountered a Warlord checkpoint 2811 | -7/Lower Caves | Entered another Lower Caves area 2811 | -7/Lower Caves | Accompanied by 2 allies 2850 | -7/Lower Caves | Spotted VC-8EE(f) 2853 | -7/Lower Caves | Encountered a Master Thief 2856 | -7/Lower Caves | Spotted K1-WMJ(f) 2857 | -7/Lower Caves | Encountered a Master Thief 2857 | -7/Lower Caves | Spotted I5-URT(f) 2857 | -7/Lower Caves | Spotted VR-5U5(f) 2857 | -7/Lower Caves | Spotted IE-F3E(f) 2858 | -7/Lower Caves | Encountered a Master Thief 2858 | -7/Lower Caves | Encountered a Master Thief 2858 | -7/Lower Caves | Encountered a Master Thief 2881 | -7/Lower Caves | Destroyed K1-WMJ(f) 2883 | -7/Lower Caves | Allies destroyed VC-8EE(f) 2883 | -7/Lower Caves | Allies destroyed I5-URT(f) 2887 | -7/Lower Caves | Destroyed VR-5U5(f) 2888 | -7/Lower Caves | Destroyed IE-F3E(f) 2918 | -7/Lower Caves | Learned Factory garrison access intel 2974 | -7/Lower Caves | Discovered new exit (range 8) 3005 | -7/Lower Caves | Identified exit to Data Miner 3018 | -7/Lower Caves | Entered Data Miner 3018 | -7/Data Miner | Accompanied by 1 ally 3018 | -7/Data Miner | Discovered new exit (range 6) 3023 | -7/Data Miner | Met Data Miner 3029 | -7/Data Miner | Learned location of Section 7 (-2) 3029 | -7/Data Miner | Acquired the access code to Warlord's prototype stash 3035 | -7/Data Miner | Received God Mode back door access code from Data Miner 3036 | -7/Data Miner | Build established: Hacker-Sprinter 3045 | -7/Data Miner | Identified exit to Proximity Caves 3050 | -7/Data Miner | Entered Proximity Caves 3050 | -6/Proximity Caves | Accompanied by 1 ally 3141 | -6/Proximity Caves | Discovered new exit (range 9) 3143 | -6/Proximity Caves | Identified exit to Factory 3143 | -6/Proximity Caves | Entered Factory 3143 | -6/Factory | Evolved 2 slots: Utility x2 3144 | -6/Factory | Loaded intel: 4 garrison access locations 3306 | -6/Factory | Incoming investigation squad redirected 3429 | -6/Factory | Discovered new exit (range 16) 3439 | -6/Factory | Fabricated A-15 Conveyor? 3488 | -6/Factory | Identified exit to Factory 3694 | -6/Factory | Identified exit to Lower Caves 3694 | -6/Factory | Identified exit to Extension 3783 | -6/Factory | Entered Extension 3815 | -6/Extension | Energy Cycler disabled 3816 | -6/Extension | Rescued a captive Derelict 3820 | -6/Extension | Rescued a captive Derelict 3824 | -6/Extension | Rescued a captive Derelict 3824 | -6/Extension | Rescued a captive Derelict 4159 | -6/Extension | Spotted B-75 Beast 4189 | -6/Extension | Identified Heart of Steel 4374 | -6/Extension | Build established: Commander-Mutant 4844 | -6/Extension | Destroyed B-75 Beast 4876 | -6/Extension | Spotted B-75 Beast 4881 | -6/Extension | Destroyed B-75 Beast 4887 | -6/Extension | Discovered exit to Factory (range 13) 5157 | -6/Extension | Heart of Steel transformed into Warbot 5283 | -6/Extension | Incoming investigation squad redirected 5560 | -6/Extension | Build established: Scavenger-Mutant 5645 | -6/Extension | Extracted ID and sensor layout for unrecognized location from A7's data core 5851 | -6/Extension | Discovered exit to Factory (range 16) 5851 | -6/Extension | Discovered new exit (range 16) 5880 | -6/Extension | Entered Cetus 5880 | -6/Cetus | Accompanied by 4 allies (Warbot) 5902 | -6/Cetus | Spotted Cetus Guard 5902 | -6/Cetus | Spotted Cetus Guard 5909 | -6/Cetus | Spotted Cetus Guard 5912 | -6/Cetus | Spotted Cetus Guard 5913 | -6/Cetus | Allies destroyed Cetus Guard 5916 | -6/Cetus | Allies destroyed Cetus Guard 5925 | -6/Cetus | Allies destroyed Cetus Guard 5933 | -6/Cetus | Allies destroyed Cetus Guard 6224 | -6/Cetus | Discovered new exit (range 15) 6253 | -6/Cetus | Entered Archives 6253 | -6/Archives | Accompanied by 1 ally (Warbot) 6330 | -6/Archives | Discovered exit to Factory (range 15) 6346 | -6/Archives | Unable to access archive contents 6370 | -6/Archives | Discovered new exit (range 14) 6404 | -6/Archives | Entered Hub_04(d) 6404 | -6/Hub_04(d) | Accompanied by 1 ally (Warbot) 6602 | -6/Hub_04(d) | Disrupted transfer network 6655 | -6/Hub_04(d) | Found Hvy. Reactive Plating 6924 | -6/Hub_04(d) | Spotted B-75 Beast 6964 | -6/Hub_04(d) | Discovered exit to Factory (range 14) 6968 | -6/Hub_04(d) | Network Hub disabled 6990 | -6/Hub_04(d) | Entered Factory 6990 | -5/Factory | Evolved 2 slots: Utility x2 7217 | -5/Factory | Discovered new exit (range 49) 7454 | -5/Factory | Discovered new exit (range 7) 7582 | -5/Factory | Spotted B-75 Beast 7786 | -5/Factory | Lost 6 parts (1p2n2u1w) 7884 | -5/Factory | Garrison activated, responded to threat 7890 | -5/Factory | Search patrols dispatched 7985 | -5/Factory | Core integrity fell below 50% 8036 | -5/Factory | Lost 8 parts (1p2n4u1w) 8038 | -5/Factory | Build established: Hacker-Mutant 8079 | -5/Factory | Incoming investigation squad redirected 8089 | -5/Factory | Cargo convoy interrupted 8090 | -5/Factory | Released all parts (6) 8092 | -5/Factory | Core integrity fell below 20% 8110 | -5/Factory | Destroyed by H-66 Slayer with Gauss Rifle Last Messages --------------- 08088_ Lgt. Nuclear Core destroyed. 08089_ ALERT: Cargo convoy interrupted, initiating access lockdown. 08089_ U-05 Engineer builds a Wall. 08089_ C-30 ARC bursts open, deploying its payload. 08089_ H-66 Slayer unfolds itself. 08089_ I-47 Archangel unfolds itself. 08089_ Gyrokinetic Inverter destroyed. 08090_ Released Imp. Hacking Suite. 08090_ Released Enh. Optical Array. 08090_ Released Gyrokinetic Inverter. 08090_ Released Armor Integrity Analyzer. 08090_ Released System Shield. 08090_ Released Imp. Signal Interpreter. 08091_ Slug penetrates Neutrino Reactor. 08091_ Slug penetrates Wall. 08092_ P-70 Sage resets A-27 Freighter, system corruption cleaned. 08093_ Neutrino Reactor explodes. 08096_ 6IIPU7ZRMVBZDHQP JPZ>63#X 08109_ Penetrated by Slug. 08110_ Slug penetrates Wall. Map ----- +----------------------------------------------------+ | # #?????????? ?????????????????????????????? | | # #?????????? ??????????????????????????????? | | # ##?????? ?? ??????????????????????????????? | | # T#?????#/##/##?????????????????????????????? | | # ??????# "%"%??????????????????????????????? | | # #??????# " #??????????????????????????????? | | # #??????# #??????????????????????????????? | | # #??????# #??????????????????????????????? | | # #??????# #??????????????????????????????? | | # ###??### #??????????????????????????????? | | # ######"" #??????? ??????????????????????? | | !%! #??????? #?????????????????????? | | = #??????? #?????????????????????? | | = #??????? #?????????????????????? | | #??????? #?????????????????????? | | ##+##### #?????????????????????? | | ##"" i ! #?????????????????????? | | ## # ####h #?????????????????????? | | #### #####h !!! #?????????????????????? | | #] h # !!! #?????????????????????? | | # # !!! #?????????????????????? | | """ """ # ! # #?????????????????????? | | """ """ " ; !#?????????????????????? | | """ """ # # =[= #?????????????????????? | | ########## =[= #?????????????????????? | | #??# s [==@ +?????????????????????? | | #??# ##########?????????????????????? | | #### #??????????????????????????????? | | # #??????????????????????????????? | | ###### # #??????????????????????????????? | | #????# #/######?????????????????????????? | | #????# # #?????????????????????????? | | #????# # #?????????????????????????? | | ?????# # #?????????????????????????? | | #????# + #?????????????????????????? | | ?????### #?????????????????????????? | | ????????# ! #?????????????????????????? | | #????????########?????????????????????????? | | ? ??????????????????????????????????????????? | | ???????????????????????????????????????????????? | | ?????????????????????????????????????????????????? | | ?????????????????????????????????????????????????? | | ?????????????????????????????????????????????????? | | ?????????????????????????????????????????????????? | | ?????????????????????????????????????????????????? | | ?????????????????????????????????????????????????? | | ?????????????????????????????????????????????????? | | ?????????????????????????????????????????????????? | | ?????????????????????????????????????????????????? | | ?????????????????????????????????????????????????? | +----------------------------------------------------+ Best States ------------- Heat Dissipation 79 Energy Generation 25 Energy Capacity 350 Matter Stores 300 Matter Capacity 300 Sight Range 22 Terrain Scan Density 110 Jamming Range 14 Cloak Strength 5 Additional Mass Support 9 Corruption Containment 8 Armor Coverage 1600 Resistance: KI 40 Resistance: EM 90 Evasion (%) 64 Targeting Accuracy 8 Melee Accuracy 6 Armor Integrity Analysis 30 Recoil Reduction 4 Offensive Hacking 12 Defensive Hacking 22 Item Schematics ----------------- Combat Drone Bay | -7/Data Miner | Free Lgt. Regenerative Plating | -7/Data Miner | Free Cld. Aerolev Unit | -7/Data Miner | Free Gravity Neutralizer | -7/Data Miner | Free Com. Ion Cannon | -7/Data Miner | Free Nuclear Pulse Array | -7/Data Miner | Free Imp. Coolant Injector | -7/Data Miner | Free Hvy. Phase Cannon | -7/Data Miner | Free Energy Well | -7/Data Miner | Free Gyrokinetic Inverter | -7/Data Miner | Free Imp. Heavy Treads | -7/Data Miner | Free Imp. Hacking Suite | -6/Extension | Hacked Imp. System Shield | -6/Extension | Hacked Adv. Target Analyzer | -6/Hub_04(d) | Hacked Robot Schematics ------------------ H-55 Commando | -7/Data Miner | Free B-48 Gladiator | -7/Data Miner | Free R-10 Processor | -7/Data Miner | Free M-14 Sweeper | -7/Data Miner | Free X-72 Disruptor | -7/Data Miner | Free A-15 Conveyor | -7/Data Miner | Free Fabricated ------------ A-15 Conveyor | x1 | -6/Factory Alien Tech Used ----------------- None Achievements -------------- None Challenges ------------ None Game ------ Seed HellfireForceBarrier Manual? 0 Play Time 02:46:29 Cumulative 234.0 hours Start 2022.04.10 @ 19:24:09 End 2022.04.10 @ 23:07:51 Sessions 3 Manual Loads 0 Difficulty Rogue Special Mode None Game No. 106 Rogue 102 Adventurer 0 Explorer 4 Win Type - Total 14 Types 4/0/2/2/1/2/3/0/0 Lore% 70 Gallery% 77 Achievement% 68 Wizard Run 0 Options --------- ASCII 0 Keyboard 0 Movement Mouse Keybinds 0 Fullscreen 1 Font 18/SmallcapsGlow Map View 76x50 Tactical HUD 1 Map Filters NONE Filters NONE Steam X RUN: 8873b9cd-1705-43ca-8242-aefaecfe370a